fUST/lending_fUST_20240105
["ID","MTS","AMOUNT","RATE_DAILY","PERIOD"]
[310273091,1704435046556,-169.5438236,0.00035015,2]
[310273092,1704435046566,-2423.97,0.00037065,3]
[310273093,1704435046575,-647.81530737,0.00038,10]
[310273133,1704436232714,-154.84515485,0.00027897,4]
[310273134,1704436232724,-1493.71109014,0.00027898,2]
[310273135,1704436232733,-281.78469983,0.00028203,2]
[310273136,1704436232742,-386.88977206,0.00028203,2]
[310273137,1704436232751,-2052.31928312,0.00029499,2]
[310273139,1704436232763,-557.10738318,0.00029499,2]
[310273169,1704436241620,-494.21254538,0.00029499,2]
[310273171,1704436241630,-1618.83130822,0.000295,30]
[310273173,1704436241639,-243.43593693,0.0003,4]
[310273175,1704436241649,-6538.37354299,0.0003121,4]
[310273177,1704436241659,-1051.11586886,0.00031211,4]
[310273179,1704436241668,-158.972046,0.00031213,2]
[310273181,1704436241677,-200.0,0.00032999,15]
[310273183,1704436241686,-385.44482468,0.00034,2]
[310273185,1704436241696,-1000.0,0.00034,7]
[310273187,1704436241705,-999.07971269,0.00034279,3]
[310273189,1704436241717,-1020.89028731,0.00034279,3]
[310273191,1704436241726,-67.21283865,0.00034289,4]
[310273200,1704436241807,-9093.07892319,0.00034289,4]
[310273211,1704436241981,-94681.59554378,0.00034289,4]
[310273212,1704436241990,-5000.0,0.00034301,7]
[310273213,1704436242001,-247.9541237,0.00034521,2]
[310273610,1704437441281,-154.79876161,0.00029499,4]
[310273611,1704437441293,-96.59257084,0.00029499,2]
[310273612,1704437441307,-490.1510355,0.00029499,2]
[310273756,1704438632039,-154.81422293,0.00027398,4]
[310273759,1704438632050,-150.0,0.00027399,2]
[310273761,1704438632059,-230.666598,0.00028398,2]
[310273763,1704438632069,-950.0830943,0.00028598,2]
[310273765,1704438632078,-9496.52988054,0.00028999,2]
[310273797,1704438641313,-11315.10751165,0.00028999,2]
[310273798,1704438641322,-3103.63921168,0.00029,2]
[310273799,1704438641331,-174.62014509,0.00029399,4]
[310273800,1704438641340,-1093.31806118,0.000295,30]
[310273801,1704438641350,-3382.70049678,0.0003,4]
[310273802,1704438641359,-6538.37354299,0.0003,4]
[310273803,1704438641368,-1739.10193292,0.0003,2]
[310273804,1704438641377,-31416.65208832,0.0003,3]
[310273805,1704438641386,-7498.90174292,0.0003,10]
[310273806,1704438641398,-22256.0974118,0.0003,10]
[310273807,1704438641407,-18528.34346906,0.0003,2]
[310273808,1704438641416,-698.3068545,0.0003,2]
[310273809,1704438641425,-197.12394252,0.0003013,2]
[310273810,1704438641435,-155.0,0.00031,2]
[310273811,1704438641445,-674.20651992,0.00031767,2]
[310273812,1704438641455,-200.0,0.00031898,15]
[310273813,1704438641465,-70084.1455482,0.00032,10]
[310273855,1704438646144,-804.678,0.00032,10]
[310273911,1704439838503,-154.82968734,0.00028798,4]
[310273912,1704439838513,-4224.62768702,0.00028999,2]
[310273914,1704439838525,-13244.92579076,0.00028999,2]
[310273928,1704439843360,-721.80899338,0.00028999,2]
[310273940,1704439846289,-773.122,0.00028999,2]
[310273942,1704439846347,-1335.924785,0.00028999,2]
[310273944,1704440132347,-1500.0,0.00047032,120]
[310273945,1704440132370,-665.65272993,0.00047032,120]
[310273946,1704440132394,-1006.40423777,0.00047032,120]
[310273947,1704440132415,-1262.61458408,0.00047032,120]
[310273948,1704440132438,-150.53040718,0.00047032,120]
[310273949,1704440132460,-346.63436625,0.00047032,120]
[310273950,1704440132482,-227.27692126,0.00047032,120]
[310273951,1704440132506,-2051.27397333,0.00047032,120]
[310273952,1704440132529,-1903.21547817,0.00047032,120]
[310273953,1704440132553,-750.0,0.00047032,120]
[310273954,1704440132575,-1767.0,0.00047032,31]
[310273955,1704440132597,-1767.0,0.00047032,32]
[310274230,1704442241884,-154.84515485,0.00026898,4]
[310274231,1704442241895,-223.37967089,0.0002782,2]
[310274232,1704442241907,-2259.01998847,0.0002782,2]
[310274233,1704442241917,-20811.63739219,0.0002782,2]
[310274234,1704442241926,-7935.87115541,0.00027821,2]
[310274235,1704442241935,-166.666666,0.00028538,2]
[310274236,1704442241944,-644.23629442,0.00028798,2]
[310274237,1704442241954,-162.84148517,0.000289,2]
[310274238,1704442241963,-1000.0,0.00029,29]
[310274239,1704442241972,-194.819322,0.00029421,2]
[310274240,1704442241981,-3103.63921168,0.00029999,2]
[310274241,1704442241990,-1474.38779821,0.0003,12]
[310274242,1704442242000,-1051.11586886,0.0003,4]
[310274243,1704442242009,-6538.37354299,0.0003,4]
[310274244,1704442242018,-166.666666,0.00030483,2]
[310274245,1704442242027,-200.0,0.00030603,15]
[310274246,1704442242037,-1000.0,0.00031,31]
[310274247,1704442242047,-172.82998454,0.00031998,4]
[310274248,1704442242056,-199.627022,0.00031998,4]
[310274249,1704442242065,-360.01837954,0.00031998,2]
[310274250,1704442242074,-155.32399762,0.00031998,4]
[310274251,1704442242083,-1361.47676769,0.00031998,4]
[310274252,1704442242093,-439.5217121,0.00031998,4]
[310274253,1704442242102,-2095.22106813,0.00031999,4]
[310274254,1704442242111,-41649.51084555,0.00032,10]
[310274255,1704442242120,-166.666666,0.00032428,2]
[310274256,1704442242129,-153.0,0.00032658,2]
[310274257,1704442242138,-209.83732667,0.000329,2]
[310274258,1704442242148,-1000.0,0.00033,33]
[310274259,1704442242157,-175.0,0.00033,2]
[310274260,1704442242166,-153.0,0.00033616,2]
[310274261,1704442242175,-109.81457875,0.00033616,2]
[310274270,1704442243731,-43.18542125,0.00033616,2]
[310274271,1704442243741,-153.0,0.00033616,2]
[310274272,1704442243751,-153.0,0.00033616,2]
[310274273,1704442243760,-150.0,0.00033627,2]
[310274274,1704442243769,-184.394,0.00033627,2]
[310274275,1704442243779,-280.0,0.00033664,15]
[310274276,1704442243788,-10.99345614,0.00034,2]
[310274277,1704442243800,-374.45136854,0.00034,2]
[310274278,1704442243810,-1000.0,0.00034,7]
[310274279,1704442243820,-245.61305008,0.00034372,4]
[310274280,1704442243829,-167.91,0.00034399,2]
[310274281,1704442243839,-167.91,0.00034399,2]
[310274282,1704442243850,-167.91,0.00034399,2]
[310274283,1704442243862,-167.91,0.00034399,2]
[310274284,1704442243871,-167.91,0.00034399,2]
[310274285,1704442243881,-121.50905108,0.00034399,2]
[310274349,1704443441092,-154.82968734,0.00029899,4]
[310274350,1704443441102,-150.0,0.000299,2]
[310274351,1704443441112,-194.819322,0.00032075,2]
[310274352,1704443441122,-455.51099066,0.00033011,4]
[310274353,1704443441134,-1129.787239,0.00033011,4]
[310274354,1704443441148,-1843.54474414,0.00033011,4]
[310274386,1704443445935,-1302.00069814,0.00033011,4]
[310274453,1704444638255,-154.82968734,0.00029709,4]
[310274454,1704444638265,-1160.76031266,0.00029999,2]
[310274495,1704445498503,153.0,0.00027,7]
[310274517,1704445832300,-154.84515485,0.00029619,4]
[310274518,1704445832310,-264.7931813,0.0002962,2]
[310274519,1704445832320,-1708.22839274,0.00029835,2]
[310274520,1704445832365,-1135.05777375,0.00029835,2]
[310274561,1704445841203,-260.35304519,0.00029835,2]
[310274562,1704445841213,-20811.63739219,0.00029835,2]
[310274563,1704445841223,-2287.7959788,0.00029836,2]
[310274564,1704445841232,-207.7695019,0.00029957,2]
[310274565,1704445841242,-1574.99640809,0.0003,2]
[310274566,1704445841251,-166.92826593,0.00030976,5]
[310274568,1704445841260,-200.0,0.00032817,15]
[310274569,1704445841269,-166.0,0.00032832,2]
[310274570,1704445841279,-153.0,0.00032986,2]
[310274571,1704445841288,-153.0,0.00032986,2]
[310274572,1704445841298,-153.0,0.00032986,2]
[310274573,1704445841307,-153.0,0.00032986,2]
[310274574,1704445841316,-724.17359311,0.00032998,4]
[310274575,1704445841326,-1000.0,0.00033,33]
[310274576,1704445841335,-3596.65140157,0.00033011,4]
[310274577,1704445841345,-282.23116997,0.00033011,3]
[310274578,1704445841355,-155.22666252,0.00033011,2]
[310274579,1704445841364,-1711.75766709,0.00033049,2]
[310274580,1704445841373,-153.0,0.00033352,2]
[310274581,1704445841383,-153.0,0.00033352,2]
[310274582,1704445841393,-153.0,0.00033352,2]
[310274583,1704445841402,-1000.0,0.00034,7]
[310274584,1704445841412,-3113.82570851,0.00034,2]
[310274586,1704445841421,-167.91,0.00034,2]
[310274587,1704445841430,-167.91,0.00034,2]
[310274588,1704445841440,-167.91,0.00034,2]
[310274589,1704445841449,-167.91,0.00034,2]
[310274590,1704445841458,-167.91,0.00034,2]
[310274591,1704445841468,-167.91,0.00034,2]
[310274592,1704445841477,-167.91,0.00034,2]
[310274593,1704445841487,-167.91,0.00034,2]
[310274594,1704445841496,-167.91,0.00034,2]
[310274595,1704445841506,-167.91,0.00034,2]
[310274596,1704445841515,-167.91,0.00034,2]
[310274597,1704445841524,-167.91,0.00034,2]
[310274598,1704445841534,-167.91,0.00034,2]
[310274599,1704445841543,-227.01602851,0.00034,2]
[310274600,1704445841554,-153.0,0.0003411,2]
[310274601,1704445841564,-153.0,0.0003411,2]
[310274602,1704445841575,-153.0,0.0003411,2]
[310274603,1704445841585,-2000.0,0.000343,2]
[310274604,1704445841594,-2000.0,0.0003431,2]
[310274605,1704445841603,-769.984265,0.0003431,2]
[310274606,1704445841612,-769.984265,0.0003431,2]
[310274607,1704445841624,-769.984265,0.0003431,2]
[310274608,1704445841634,-769.984265,0.0003431,2]
[310274609,1704445841643,-769.984265,0.0003431,2]
[310274610,1704445841652,-769.984265,0.0003431,2]
[310274611,1704445841662,-151.0,0.0003431,2]
[310274612,1704445841671,-2000.0,0.0003432,2]
[310274613,1704445841681,-769.984265,0.0003432,2]
[310274614,1704445841691,-769.984265,0.0003432,2]
[310274615,1704445841699,-151.0,0.0003432,2]
[310274616,1704445841709,-2000.0,0.0003433,2]
[310274617,1704445841718,-151.369176,0.0003433,2]
[310274618,1704445841727,-151.0,0.0003433,2]
[310274619,1704445841737,-769.984265,0.0003433,2]
[310274620,1704445841746,-769.984265,0.0003433,2]
[310274621,1704445841756,-151.0,0.0003433,2]
[310274622,1704445841765,-2000.0,0.0003434,2]
[310274623,1704445841775,-151.0,0.0003434,2]
[310274624,1704445841784,-151.0,0.0003435,2]
[310274625,1704445841796,-151.0,0.0003435,2]
[310274626,1704445841805,-2000.0,0.0003435,2]
[310274627,1704445841815,-175.874831,0.0003436,2]
[310274628,1704445841824,-175.874831,0.0003436,2]
[310274629,1704445841833,-2000.0,0.0003436,2]
[310274630,1704445841842,-151.0,0.0003436,2]
[310274631,1704445841852,-769.984265,0.0003436,2]
[310274632,1704445841862,-769.984265,0.0003436,2]
[310274633,1704445841870,-151.0,0.0003436,2]
[310274634,1704445841881,-2000.0,0.0003437,2]
[310274635,1704445841890,-15029.38,0.0003437,3]
[310274636,1704445841900,-151.0,0.0003437,2]
[310274637,1704445841910,-769.984265,0.0003437,2]
[310274638,1704445841919,-769.984265,0.0003437,2]
[310274639,1704445841930,-175.874831,0.0003438,2]
[310274640,1704445841940,-175.874831,0.0003438,2]
[310274641,1704445841950,-2000.0,0.0003438,2]
[310274642,1704445841959,-215.509158,0.0003438,2]
[310274643,1704445841968,-769.984265,0.0003438,2]
[310274644,1704445841977,-769.984265,0.0003438,2]
[310274645,1704445841987,-153.0,0.00034384,2]
[310274646,1704445841997,-153.0,0.00034384,2]
[310274647,1704445842008,-1696.87690953,0.0003439,2]
[310274648,1704445842021,-303.12309047,0.0003439,2]
[310274649,1704445842030,-175.874831,0.0003439,2]
[310274650,1704445842039,-175.874831,0.0003439,2]
[310274651,1704445842048,-448.32724753,0.000344,2]
[310274652,1704445842064,-829.31771081,0.000344,2]
[310274653,1704445842076,-722.35504166,0.000344,2]
[310274654,1704445842086,-769.984265,0.000344,2]
[310274655,1704445842095,-769.984265,0.000344,2]
[310274656,1704445842104,-2000.0,0.0003441,2]
[310274657,1704445842113,-175.874831,0.0003441,2]
[310274658,1704445842124,-175.874831,0.0003441,2]
[310274659,1704445842134,-2000.0,0.0003442,2]
[310274660,1704445842143,-769.984265,0.0003442,2]
[310274661,1704445842152,-769.984257,0.0003442,2]
[310274662,1704445842161,-2000.0,0.0003443,2]
[310274663,1704445842170,-175.874831,0.0003443,2]
[310274664,1704445842179,-175.874831,0.0003443,2]
[310274665,1704445842188,-2000.0,0.0003444,2]
[310274666,1704445842197,-2000.0,0.0003445,2]
[310274667,1704445842206,-175.874831,0.0003445,2]
[310274668,1704445842216,-175.874831,0.0003445,2]
[310274669,1704445842227,-2000.0,0.0003446,2]
[310274670,1704445842236,-2000.0,0.0003447,2]
[310274671,1704445842246,-175.874831,0.0003447,2]
[310274672,1704445842256,-175.874831,0.0003447,2]
[310274673,1704445842265,-2000.0,0.0003448,2]
[310274674,1704445842274,-2611.293341,0.0003449,2]
[310274675,1704445842283,-175.874831,0.0003449,2]
[310274676,1704445842292,-175.874831,0.0003449,2]
[310274677,1704445842302,-175.874831,0.00034521,2]
[310274678,1704445842311,-175.874831,0.00034521,2]
[310274679,1704445842321,-4000.0,0.00034521,2]
[310274680,1704445842331,-175.874831,0.00034781,2]
[310274681,1704445842341,-175.874827,0.00034781,2]
[310274682,1704445842351,-2093.31958867,0.00034788,2]
[310274683,1704445842360,-169.88039227,0.00034788,3]
[310274684,1704445842370,-500.0,0.0003486,2]
[310274685,1704445842381,-189.27606846,0.0003486,2]
[310274686,1704445842392,-156.78353327,0.0003486,2]
[310274687,1704445842401,-55264.4920678,0.00034861,2]
[310274688,1704445842410,-5000.0,0.00034961,7]
[310274689,1704445842419,-5000.0,0.00034961,7]
[310274690,1704445842428,-5000.0,0.00034961,7]
[310274691,1704445842438,-2650.27448344,0.00035,4]
[310274692,1704445842448,-1000.0,0.00035,35]
[310274693,1704445842457,-4280.0215874,0.00035,4]
[310274694,1704445842467,-154.81422293,0.00035,4]
[310274695,1704445842476,-21117.19825028,0.00035,7]
[310274696,1704445842486,-392.66928205,0.00035014,4]
[310274697,1704445842496,-12206.9372436,0.0003502,5]
[310274698,1704445842505,-5000.0,0.00035026,7]
[310274699,1704445842514,-5000.0,0.00035026,7]
[310274700,1704445842523,-5000.0,0.00035026,7]
[310274701,1704445842533,-5000.0,0.00035026,7]
[310274702,1704445842542,-5000.0,0.00035026,7]
[310274703,1704445842551,-5000.0,0.00035026,7]
[310274704,1704445842562,-5000.0,0.00035213,7]
[310274705,1704445842573,-5000.0,0.00035213,7]
[310274706,1704445842582,-1000.0,0.00035213,10]
[310274707,1704445842592,-199.13583395,0.00035371,2]
[310274708,1704445842600,-203.14669036,0.00035371,2]
[310274709,1704445842609,-747.63551505,0.00035371,2]
[310274711,1704445842619,-421.19549191,0.00035371,2]
[310274713,1704445842631,-209.25635503,0.00035371,2]
[310274715,1704445842640,-162.64200102,0.00035371,2]
[310274717,1704445842650,-513.0,0.00035452,2]
[310274718,1704445842659,-150.0,0.00035452,2]
[310274719,1704445842668,-832.36496317,0.00035498,4]
[310274721,1704445842678,-66772.94856781,0.00035499,4]
[310274723,1704445842687,-494.6067428,0.00035499,4]
[310274725,1704445842696,-500.0,0.00035499,4]
[310274727,1704445842706,-394.07011996,0.00035499,7]
[310274729,1704445842715,-47006.99796797,0.000355,14]
[310274731,1704445842724,-234.957178,0.00035616,120]
[310274732,1704445842733,-4000.0,0.00035798,2]
[310274735,1704445842743,-166.0,0.00035832,2]
[310274737,1704445842752,-154.84515485,0.000359,4]
[310274739,1704445842761,-298.03197229,0.00036,2]
[310274741,1704445842770,-280.0,0.00036099,15]
[310274743,1704445842780,-151.0,0.00036608,2]
[310274745,1704445842789,-265.20914203,0.00036998,4]
[310274747,1704445842798,-229.79786207,0.00037,3]
[310274748,1704445842807,-43953.52370044,0.00037,7]
[310274750,1704445842816,-1000.0,0.00037,37]
[310274753,1704445842948,-30269.00406112,0.00037,2]
[310274754,1704445842958,-409.8962,0.00037,30]
[310274755,1704445842967,-5500.0,0.00037,2]
[310274756,1704445842976,-1504.931275,0.00037,2]
[310274757,1704445842986,-640.57918296,0.00037064,4]
[310274759,1704445842995,-4000.0,0.00037075,2]
[310274761,1704445843004,-4184.20842677,0.0003777,30]
[310274762,1704445843015,-39947.7903768,0.000379,2]
[310274764,1704445843025,-474.80514366,0.00037996,4]
[310274766,1704445843038,-3538.87543689,0.00037996,2]
[310274767,1704445843047,-1181.95118505,0.00037996,7]
[310274768,1704445843056,-1321.39393737,0.00037998,4]
[310274769,1704445843066,-302.2999368,0.00037998,4]
[310274770,1704445843076,-447.48281592,0.00037998,4]
[310274771,1704445843085,-6020.46519048,0.00037998,2]
[310274772,1704445843094,-1631.11386911,0.00037998,4]
[310274773,1704445843104,-300.99259591,0.00037998,4]
[310274774,1704445843115,-590.28475071,0.00037998,2]
[310274775,1704445843126,-1087.2919038,0.00037998,4]
[310274776,1704445843137,-355.91910944,0.00037998,14]
[310274777,1704445843147,-43133.01216665,0.00037999,4]
[310274778,1704445843157,-500.0,0.00037999,7]
[310274779,1704445843167,-245.9550571,0.00037999,7]
[310274780,1704445843177,-190672.08359473,0.00038,10]
[310274781,1704445843294,-20664.04522065,0.00038,10]
[310274782,1704445843306,-1835.33620696,0.00038,10]
[310274783,1704445843500,-4517.81366872,0.0003509,7]
[310274784,1704445843514,-482.18633128,0.0003509,7]
[310274785,1704445843523,-59.48786872,0.00038,10]
[310274786,1704445843535,-3586.33671267,0.00038,10]
[310274787,1704445843550,-9742.40772197,0.00038,10]
[310274960,1704447038645,-154.84515485,0.00029443,4]
[310274961,1704447038656,-215.364797,0.00029444,2]
[310274963,1704447038668,-3103.63921168,0.00029518,2]
[310274965,1704447038679,-1429.76039324,0.00029518,2]
[310274968,1704447038701,-19381.87699895,0.00029518,2]
[310274970,1704447038712,-3929.37487724,0.00029519,2]
[310274972,1704447038723,-4414.3953234,0.00030825,2]
[310274973,1704447038734,-169.88039227,0.00030999,4]
[310274975,1704447038745,-2093.31958867,0.00030999,2]
[310274977,1704447038756,-68590.19593527,0.00031,4]
[310274978,1704447038767,-999.60243741,0.00032001,2]
[310274979,1704447038778,-200.0,0.00032469,15]
[310274980,1704447038789,-153.0,0.00033,2]
[310274981,1704447038800,-1000.0,0.00034,7]
[310274982,1704447038811,-640.57918296,0.00034195,4]
[310274983,1704447038821,-974.23467953,0.00034198,2]
[310274984,1704447038832,-150.0,0.000343,2]
[310274985,1704447038844,-3964.212562,0.00034521,2]
[310274986,1704447038856,-153.0,0.00034521,2]
[310274987,1704447038867,-2650.27448344,0.00035,4]
[310274988,1704447038878,-1000.0,0.00035,35]
[310274989,1704447038891,-4280.0215874,0.00035,4]
[310274990,1704447038902,-154.84515485,0.00035,4]
[310274991,1704447038914,-302.2999368,0.00035084,4]
[310274992,1704447038925,-3538.87543689,0.00035084,2]
[310274993,1704447038937,-1321.39393737,0.00035085,4]
[310274994,1704447038949,-300.99259591,0.00035087,4]
[310274995,1704447038960,-1631.11386911,0.00035087,4]
[310274996,1704447038971,-447.48281592,0.00035087,4]
[310274997,1704447038981,-590.28475071,0.00035088,2]
[310274998,1704447038992,-6020.46519048,0.00035089,2]
[310274999,1704447039002,-440.18939066,0.00035089,2]
[310275000,1704447039013,-500.0,0.00035089,2]
[310275001,1704447039024,-156.78353327,0.00035089,2]
[310275002,1704447039035,-5000.0,0.0003509,7]
[310275003,1704447039046,-5000.0,0.00035276,7]
[310275004,1704447039057,-154.63830742,0.00035367,2]
[310275005,1704447039068,-503.0951626,0.00035367,2]
[310275006,1704447039078,-2189.18339611,0.00035367,2]
[310275007,1704447039089,-283.19752613,0.00035367,2]
[310275008,1704447039099,-666.14951581,0.00035367,2]
[310275009,1704447039110,-512.0,0.00035452,2]
[310275010,1704447039121,-47006.99796797,0.000355,14]
[310275011,1704447039132,-298.467347,0.00035616,120]
[310275012,1704447039142,-280.0,0.00035716,15]
[310275013,1704447039153,-3964.212562,0.00035798,2]
[310275014,1704447039164,-154.84515485,0.000359,4]
[310275015,1704447039175,-832.36496317,0.00036096,4]
[310275016,1704447039186,-392.66928205,0.00036096,4]
[310275017,1704447039196,-12206.9372436,0.000361,5]
[310275018,1704447039207,-4254.39435643,0.00036979,2]
[310275019,1704447039217,-5000.0,0.00036979,7]
[310275020,1704447039228,-5000.0,0.00036979,7]
[310275021,1704447039237,-5000.0,0.00036979,7]
[310275022,1704447039247,-32028.99793089,0.00036979,2]
[310275023,1704447039257,-10500.0,0.00036979,2]
[310275024,1704447039268,-5000.0,0.00036979,7]
[310275025,1704447039277,-5000.0,0.00036979,7]
[310275026,1704447039439,-2415.2525466,0.00036979,2]
[310275027,1704447039456,-265.20914203,0.00036998,4]
[310275028,1704447039465,-474.80514366,0.00036999,4]
[310275029,1704447039475,-40796.21194131,0.00037,7]
[310275030,1704447039485,-1181.95118505,0.00037,7]
[310275031,1704447039495,-1000.0,0.00037,37]
[310275032,1704447039504,-409.89624,0.00037,30]
[310275033,1704447039513,-1504.931275,0.00037,2]
[310275034,1704447039523,-3964.212562,0.00037075,2]
[310275035,1704447039531,-155.0,0.0003763,2]
[310275036,1704447039541,-153.0,0.00037753,2]
[310275037,1704447039550,-4184.20842677,0.0003777,30]
[310275038,1704447039559,-6955.69769468,0.000379,2]
[310275039,1704447039568,-200.152487,0.000379,9]
[310275040,1704447039577,-1816.95560602,0.00037989,2]
[310275041,1704447039586,-355.91910944,0.00037997,14]
[310275042,1704447039596,-1087.2919038,0.00037998,4]
[310275043,1704447039606,-500.0,0.00037998,4]
[310275044,1704447039615,-500.0,0.00037998,4]
[310275045,1704447039625,-176.48012452,0.00037998,4]
[310275046,1704447039635,-394.07011996,0.00037998,7]
[310275047,1704447039644,-43133.01216565,0.00037999,4]
[310275048,1704447039654,-500.0,0.00037999,7]
[310275049,1704447039662,-382.36009339,0.00037999,7]
[310275050,1704447039671,-229.79786207,0.00038,3]
[310275051,1704447039681,-261809.43769461,0.00038,10]
[310275052,1704447039690,-2140.58677585,0.00038,4]
[310275053,1704447039699,-379.58002868,0.00038,4]
[310275054,1704447039708,-275.03630129,0.00038,30]
[310275055,1704447039717,-5432.20128895,0.00038,30]
[310275056,1704447039727,-28502.09816494,0.00038,10]
[310275075,1704447046406,-166.0,0.00032842,2]
[310275076,1704447046416,-166.0,0.00035842,2]
[310275077,1704447046425,-195.75470622,0.0003799,3]
[310275078,1704447046470,-7893.05198564,0.0003799,3]
[310275111,1704448125231,-150.81901718,0.00032605,120]
[310275112,1704448125305,-223.85051,0.00035616,120]
[310275113,1704448125384,-1302.29898,0.00039,120]
[310275223,1704448238891,-154.82968734,0.00031998,5]
[310275224,1704448238902,-3292.82133135,0.00031999,4]
[310275242,1704448241853,-5665.1693959,0.00031999,4]
[310275274,1704448246674,-1750.015368,0.00031999,4]
[310275281,1704448603687,73.03149282,0.00033681,120]
[310275316,1704449431788,-154.82968734,0.00029249,4]
[310275317,1704449431798,-3658.87774128,0.00029249,2]
[310275318,1704449431807,-6367.49443221,0.00029249,2]
[310275346,1704449437914,-14444.14295998,0.00029249,2]
[310275348,1704449437923,-2110.85336916,0.0002925,10]
[310275350,1704449437932,-150.83408251,0.00031993,120]
[310275351,1704449437942,-10000.0,0.00032,5]
[310275352,1704449437951,-200.0,0.00032173,15]
[310275354,1704449437961,-150.83408251,0.00032646,30]
[310275356,1704449437971,-153.0,0.00033,2]
[310275358,1704449437980,-974.23467953,0.00033298,2]
[310275360,1704449437990,-150.83408251,0.00033312,7]
[310275362,1704449437999,-150.83408251,0.00033992,4]
[310275364,1704449438009,-999.60243741,0.00034299,2]
[310275366,1704449438018,-2000.0,0.000343,2]
[310275368,1704449438028,-2000.0,0.0003431,2]
[310275370,1704449438038,-2000.0,0.0003432,2]
[310275373,1704449438047,-2000.0,0.0003433,2]
[310275374,1704449438056,-2000.0,0.0003434,2]
[310275377,1704449438066,-2000.0,0.0003435,2]
[310275379,1704449438075,-2000.0,0.0003436,2]
[310275380,1704449438085,-2000.0,0.0003437,2]
[310275383,1704449438094,-3333.648382,0.0003438,2]
[310275384,1704449438103,-512.58158862,0.00034433,10]
[310275387,1704449438113,-4000.0,0.00034521,2]
[310275389,1704449438122,-153.0,0.00034521,2]
[310275391,1704449438132,-150.83408251,0.00034686,2]
[310275393,1704449438141,-8808.12,0.000348,3]
[310275395,1704449438150,-10569.75,0.0003481,3]
[310275397,1704449438159,-12683.7,0.0003482,3]
[310275399,1704449438169,-7340.04,0.0003483,3]
[310275401,1704449438178,-2650.27448344,0.00035,4]
[310275403,1704449438188,-4280.0215874,0.00035,4]
[310275405,1704449438199,-2090.0,0.00035,30]
[310275407,1704449438210,-154.82968734,0.00035365,4]
[310275409,1704449438220,-151.5134057,0.00035367,2]
[310275411,1704449438231,-156.37024258,0.00035367,2]
[310275412,1704449438241,-2657.38473565,0.00035367,2]
[310275414,1704449438251,-194.82444411,0.00035367,2]
[310275416,1704449438260,-280.0,0.0003539,15]
[310275418,1704449438272,-579.0,0.00035452,2]
[310275419,1704449438282,-47006.99796797,0.000355,14]
[310275420,1704449438293,-242.50472,0.00035616,120]
[310275421,1704449438302,-4000.0,0.00035798,2]
[310275422,1704449438312,-154.82968734,0.000359,4]
[310275423,1704449438322,-500.0,0.00036522,2]
[310275424,1704449438331,-440.18939066,0.00036522,2]
[310275425,1704449438341,-156.78353327,0.00036522,2]
[310275426,1704449438350,-5000.0,0.00036523,7]
[310275427,1704449438360,-10427.10702736,0.00036523,2]
[310275428,1704449438370,-39314.5390034,0.00036594,2]
[310275429,1704449438380,-2126.44989654,0.00036726,2]
[310275430,1704449438390,-265.20914203,0.000369,4]
[310275431,1704449438400,-447.48281592,0.000369,4]
[310275432,1704449438410,-474.80514366,0.00036901,4]
[310275433,1704449438419,-5000.0,0.00036902,7]
[310275434,1704449438428,-1080.39122686,0.00036902,2]
[310275435,1704449438439,-11229.33838749,0.00036902,2]
[310275436,1704449438451,-640.57918296,0.00036996,4]
[310275437,1704449438460,-302.2999368,0.00036997,4]
[310275438,1704449438469,-3538.87543689,0.00036997,2]
[310275439,1704449438479,-355.91910944,0.00036998,14]
[310275440,1704449438488,-832.36496317,0.00036998,4]
[310275441,1704449438499,-392.66928205,0.00036998,4]
[310275442,1704449438508,-6020.46519048,0.00036998,2]
[310275443,1704449438518,-1631.11386911,0.00036998,4]
[310275444,1704449438529,-300.99259591,0.00036998,4]
[310275445,1704449438539,-590.28475071,0.00036998,2]